fUSD/lending_fUSD_20250804
["ID","MTS","AMOUNT","RATE_DAILY","PERIOD"]
[377245929,1754306062342,-430.38,0.00042191,2]
[377245930,1754306062351,-400.0,0.00042191,2]
[377245931,1754306062361,-1547.49,0.00042191,2]
[377245932,1754306062370,-948.07,0.00042191,2]
[377245933,1754306062379,-1424.69,0.00042191,2]
[377245934,1754306062388,-1692.45,0.00042191,2]
[377245935,1754306062397,-1630.8,0.00042191,2]
[377245936,1754306062406,-840.48,0.00042191,2]
[377245937,1754306062416,-665.52,0.00042191,2]
[377245938,1754306062426,-870.74,0.00042191,2]
[377245939,1754306062435,-1702.7,0.00042191,2]
[377245940,1754306062445,-1068.48,0.00042191,2]
[377245941,1754306062454,-727.65,0.00042191,2]
[377245942,1754306062464,-469.7,0.00042191,2]
[377245943,1754306062474,-1880.84,0.00042191,2]
[377245944,1754306062483,-1107.78,0.00042191,2]
[377245945,1754306062493,-400.0,0.00042191,2]
[377245946,1754306062502,-813.9,0.00042191,2]
[377245947,1754306062511,-874.7,0.00042191,2]
[377245948,1754306062520,-400.0,0.00042191,2]
[377245949,1754306062529,-400.0,0.00042191,2]
[377245950,1754306062539,-426.16,0.00042191,2]
[377245951,1754306062548,-1110.47,0.00042191,2]
[377245952,1754306062558,-665.68,0.00042191,2]
[377245953,1754306062567,-400.0,0.00042191,2]
[377245954,1754306062576,-903.87,0.00042191,2]
[377245955,1754306062586,-470.81,0.00042191,2]
[377245956,1754306062595,-1358.5,0.00042191,2]
[377245957,1754306062605,-440.85,0.00042191,2]
[377245958,1754306062614,-1246.04,0.00042191,2]
[377245959,1754306062624,-1647.73,0.00042191,2]
[377245960,1754306062633,-1443.42,0.00042191,2]
[377245961,1754306062641,-994.67,0.00042191,2]
[377245962,1754306062651,-924.22,0.00042191,2]
[377245963,1754306062660,-472.86,0.00042191,2]
[377245964,1754306062669,-770.36,0.00042191,2]
[377245965,1754306062678,-1946.52,0.00042191,2]
[377245966,1754306062687,-979.61,0.00042191,2]
[377245967,1754306062697,-400.0,0.00042191,2]
[377245968,1754306062713,-400.0,0.00042191,2]
[377245969,1754306062722,-860.7,0.00042191,2]
[377245970,1754306062731,-537.4,0.00042191,2]
[377245971,1754306062740,-645.5,0.00042191,2]
[377245972,1754306062749,-2101.73,0.00042191,2]
[377245973,1754306062758,-537.04,0.00042191,2]
[377245974,1754306062767,-450.14,0.00042191,2]
[377245975,1754306062777,-798.27,0.00042191,2]
[377245976,1754306062786,-1175.36,0.00042191,2]
[377245977,1754306062795,-456.48,0.00042191,2]
[377245978,1754306062804,-939.52,0.00042191,2]
[377245979,1754306062813,-482.35,0.00042191,2]
[377245980,1754306062822,-1154.12,0.00042191,2]
[377245981,1754306062831,-400.0,0.00042191,2]
[377245982,1754306062840,-1226.27,0.00042191,2]
[377245983,1754306062850,-842.4,0.00042191,2]
[377245984,1754306062859,-400.0,0.00042191,2]
[377245985,1754306062868,-869.19,0.00042191,2]
[377245986,1754306062877,-700.37,0.00042191,2]
[377245987,1754306062889,-400.0,0.00042191,2]
[377245988,1754306062898,-1791.49,0.00042191,2]
[377245989,1754306062907,-1000.94,0.00042191,2]
[377245990,1754306062916,-1221.49,0.00042191,2]
[377245991,1754306062926,-400.0,0.00042191,2]
[377245992,1754306062935,-1747.77,0.00042191,2]
[377245993,1754306062944,-400.0,0.00042191,2]
[377245994,1754306062953,-1316.83,0.00042191,2]
[377245995,1754306062964,-1344.32,0.00042191,2]
[377245996,1754306062973,-755.49,0.00042191,2]
[377245997,1754306062983,-778.88,0.00042191,2]
[377245998,1754306062992,-991.24,0.00042191,2]
[377245999,1754306063000,-786.99,0.00042191,2]
[377246000,1754306063009,-444.22,0.00042191,2]
[377246001,1754306063018,-1258.35,0.00042191,2]
[377246002,1754306063028,-1539.3,0.00042191,2]
[377246003,1754306063037,-400.0,0.00042191,2]
[377246004,1754306063046,-400.0,0.00042191,2]
[377246005,1754306063056,-400.0,0.00042191,2]
[377246006,1754306063065,-1182.86,0.00042191,2]
[377246007,1754306063074,-1113.84,0.00042191,2]
[377246008,1754306063083,-1278.85,0.00042191,2]
[377246009,1754306063091,-4729.89,0.00042191,2]
[377246010,1754306063101,-454.82,0.00042191,2]
[377246011,1754306063110,-1031.98,0.00042191,2]
[377246012,1754306063119,-775.41,0.00042191,2]
[377246013,1754306063128,-1202.77,0.00042191,2]
[377246014,1754306063137,-400.0,0.00042191,2]
[377246015,1754306063146,-492.55,0.00042191,2]
[377246016,1754306063155,-400.0,0.00042191,2]
[377246017,1754306063164,-1481.93,0.00042191,2]
[377246018,1754306063173,-1675.62,0.00042191,2]
[377246019,1754306063182,-584.39,0.00042191,2]
[377246020,1754306063191,-679.61,0.00042191,2]
[377246021,1754306063200,-744.37,0.00042191,2]
[377246022,1754306063209,-1340.53,0.00042191,2]
[377246023,1754306063218,-2502.12,0.00042191,2]
[377246024,1754306063227,-2328.28,0.00042191,2]
[377246025,1754306063237,-815.04,0.00042191,2]
[377246026,1754306063246,-1484.28,0.00042191,2]
[377246027,1754306063255,-1012.72,0.00042191,2]
[377246028,1754306063264,-1969.15,0.00042191,2]
[377246029,1754306063273,-1435.3,0.00042191,2]
[377246030,1754306063282,-400.0,0.00042191,2]
[377246031,1754306063291,-400.0,0.00042191,2]
[377246032,1754306063301,-913.42,0.00042191,2]
[377246033,1754306063310,-1703.95,0.00042191,2]
[377246034,1754306063319,-2504.25,0.00042191,2]
[377246035,1754306063328,-1030.22,0.00042191,2]
[377246036,1754306063337,-400.0,0.00042191,2]
[377246037,1754306063347,-741.38,0.00042191,2]
[377246038,1754306063356,-400.0,0.00042191,2]
[377246039,1754306063366,-1237.75,0.00042191,2]
[377246040,1754306063375,-623.67,0.00042191,2]
[377246041,1754306063384,-400.0,0.00042191,2]
[377246042,1754306063393,-602.81,0.00042191,2]
[377246043,1754306063402,-400.0,0.00042191,2]
[377246044,1754306063411,-992.32,0.00042191,2]
[377246045,1754306063420,-400.0,0.00042191,2]
[377246046,1754306063430,-537.5,0.00042191,2]
[377246047,1754306063439,-956.99,0.00042191,2]
[377246048,1754306063448,-630.59,0.00042191,2]
[377246049,1754306063457,-400.0,0.00042191,2]
[377246050,1754306063466,-1585.73,0.00042191,2]
[377246051,1754306063475,-1301.61,0.00042191,2]
[377246052,1754306063485,-1889.25,0.00042191,2]
[377246053,1754306063494,-641.71,0.00042191,2]
[377246054,1754306063503,-400.0,0.00042191,2]
[377246055,1754306063513,-924.72,0.00042191,2]
[377246056,1754306063522,-1059.24,0.00042191,2]
[377246057,1754306063531,-2092.15,0.00042191,2]
[377246058,1754306063540,-533.38,0.00042191,2]
[377246059,1754306063549,-890.3,0.00042191,2]
[377246060,1754306063558,-501.38,0.00042191,2]
[377246061,1754306063567,-1366.75,0.00042191,2]
[377246062,1754306063576,-690.08,0.00042191,2]
[377246063,1754306063585,-1441.16,0.00042191,2]
[377246064,1754306063594,-990.2,0.00042191,2]
[377246065,1754306063604,-803.42,0.00042191,2]
[377246066,1754306063614,-645.51,0.00042191,2]
[377246067,1754306063623,-326.50509855,0.00042191,2]
[377246068,1754306063632,-545.68,0.00042191,2]
[377246069,1754306063642,-400.0,0.00042191,2]
[377246070,1754306063651,-726.21,0.00042191,2]
[377246071,1754306063660,-400.0,0.00042191,2]
[377246072,1754306063670,-506.95,0.00042191,2]
[377246073,1754306063679,-788.62,0.00042191,2]
[377246074,1754306063688,-931.05,0.00042191,2]
[377246075,1754306063697,-218.64032536,0.00042191,2]
[377246076,1754306063707,-2071.07,0.00042191,2]
[377246077,1754306063716,-1077.59,0.00042191,2]
[377246078,1754306063725,-552.88,0.00042191,2]
[377246079,1754306063734,-400.0,0.00042191,2]
[377246080,1754306063744,-400.0,0.00042191,2]
[377246081,1754306063753,-551.2,0.00042191,2]
[377246082,1754306063762,-1479.72,0.00042191,2]
[377246083,1754306063771,-522.189098,0.00042191,2]
[377246084,1754306063781,-418.78,0.00042191,120]
[377246085,1754306063790,-400.0,0.00042191,2]
[377246086,1754306063800,-628.0,0.00042191,2]
[377246087,1754306063809,-400.0,0.00042191,2]
[377246088,1754306063818,-1047.92,0.00042191,2]
[377246089,1754306063828,-1186.41,0.00042191,2]
[377246090,1754306063837,-882.59,0.00042191,2]
[377246091,1754306063847,-845.07,0.00042191,2]
[377246092,1754306063857,-627.42,0.00042191,2]
[377246093,1754306063866,-1654.02,0.00042191,2]
[377246094,1754306063875,-1022.16,0.00042191,2]
[377246095,1754306063885,-928.07,0.00042191,2]
[377246097,1754306063894,-463.65,0.00042191,2]
[377246098,1754306063903,-1368.23,0.00042191,2]
[377246100,1754306063912,-987.02,0.00042191,2]
[377246101,1754306063921,-1127.8,0.00042191,2]
[377246102,1754306063930,-1457.97,0.00042191,2]
[377246104,1754306063940,-1263.43,0.00042191,2]
[377246105,1754306063950,-732.77,0.00042191,2]
[377246107,1754306063962,-1212.72,0.00042191,2]
[377246108,1754306063973,-1364.75,0.00042191,2]
[377246109,1754306063986,-1963.71,0.00042191,2]
[377246110,1754306063996,-3088.08,0.00042191,2]
[377246111,1754306064007,-669.31,0.00042191,2]
[377246112,1754306064016,-400.0,0.00042191,2]
[377246113,1754306064025,-1338.78,0.00042191,2]
[377246114,1754306064034,-470.83,0.00042191,2]
[377246115,1754306064044,-1725.86,0.00042191,2]
[377246116,1754306064054,-1157.0,0.00042191,2]
[377246117,1754306064063,-400.0,0.00042191,2]
[377246118,1754306064072,-1049.12,0.00042191,2]
[377246119,1754306064081,-888.73,0.00042191,2]
[377246120,1754306064090,-719.82,0.00042191,2]
[377246121,1754306064099,-574.83,0.00042191,2]
[377246122,1754306064109,-1718.88,0.00042191,2]
[377246123,1754306064118,-1630.61,0.00042191,2]
[377246124,1754306064128,-629.17,0.00042191,2]
[377246125,1754306064138,-1303.32,0.00042191,2]
[377246126,1754306064146,-666.66,0.00042191,2]
[377246127,1754306064156,-400.0,0.00042191,2]
[377246128,1754306064165,-603.36,0.00042191,2]
[377246129,1754306064176,-1485.45,0.00042191,2]
[377246130,1754306064185,-495.64,0.00042191,2]
[377246131,1754306064194,-718.11,0.00042191,2]
[377246132,1754306064203,-400.0,0.00042191,2]
[377246133,1754306064213,-1307.14,0.00042191,2]
[377246134,1754306064221,-1527.44,0.00042191,2]
[377246135,1754306064231,-1110.24,0.00042191,2]
[377246136,1754306064240,-869.15,0.00042191,2]
[377246137,1754306064249,-536.27,0.00042191,2]
[377246138,1754306064258,-1091.81,0.00042191,2]
[377246139,1754306064268,-1130.18,0.00042191,2]
[377246140,1754306064276,-1075.79,0.00042191,2]
[377246141,1754306064286,-1117.05,0.00042191,2]
[377246142,1754306064295,-905.65,0.00042191,2]
[377246143,1754306064305,-471.33,0.00042191,2]
[377246144,1754306064314,-966.32,0.00042191,2]
[377246145,1754306064323,-400.0,0.00042191,2]
[377246146,1754306064333,-798.59,0.00042191,2]
[377246147,1754306064342,-400.0,0.00042191,2]
[377246148,1754306064351,-1284.95,0.00042191,2]
[377246149,1754306064360,-1354.83,0.00042191,2]
[377246150,1754306064369,-1268.26,0.00042191,2]
[377246151,1754306064378,-631.36,0.00042191,2]
[377246152,1754306064387,-862.24,0.00042191,2]
[377246153,1754306064402,-1400.07,0.00042191,2]
[377246154,1754306064412,-699.87,0.00042191,2]
[377246155,1754306064421,-912.08,0.00042191,2]
[377246156,1754306064430,-1343.86,0.00042191,2]
[377246157,1754306064440,-743.43,0.00042191,2]
[377246158,1754306064449,-616.73,0.00042191,2]
[377246159,1754306064459,-927.18,0.00042191,2]
[377246160,1754306064468,-418.89,0.00042191,2]
[377246161,1754306064477,-875.84,0.00042191,2]
[377246162,1754306064487,-1329.19,0.00042191,2]
[377246163,1754306064498,-434.19,0.00042191,2]
[377246164,1754306064515,-1658.94,0.00042191,2]
[377246165,1754306064525,-1333.24,0.00042191,2]
[377246166,1754306064536,-400.0,0.00042191,2]
[377246167,1754306064545,-967.63,0.00042191,2]
[377246168,1754306064555,-414.76,0.00042191,2]
[377246169,1754306064564,-400.0,0.00042191,2]
[377246170,1754306064574,-400.0,0.00042191,2]
[377246171,1754306064583,-944.68,0.00042191,2]
[377246172,1754306064593,-1263.4,0.00042191,2]
[377246173,1754306064602,-1252.38,0.00042191,2]
[377246174,1754306064612,-400.0,0.00042191,2]
[377246175,1754306064621,-412.29,0.00042191,2]
[377246176,1754306064631,-605.41,0.00042191,2]
[377246177,1754306064641,-1748.2,0.00042191,2]
[377246178,1754306064650,-1117.53,0.00042191,2]
[377246179,1754306064659,-2048.38,0.00042191,2]
[377246180,1754306064668,-3038.05,0.00042191,2]
[377246181,1754306064678,-611.63,0.00042191,2]
[377246182,1754306064688,-886.22,0.00042191,2]
[377246183,1754306064697,-1068.97,0.00042191,2]
[377246184,1754306064707,-673.68,0.00042191,2]
[377246185,1754306064717,-1348.61,0.00042191,2]
[377246186,1754306064727,-4263.58,0.00042191,2]
[377246187,1754306064737,-590.51,0.00042191,2]
[377246188,1754306064747,-400.0,0.00042191,2]
[377246189,1754306064757,-841.94,0.00042191,2]
[377246190,1754306064767,-1374.4,0.00042191,2]
[377246191,1754306065006,-661.31,0.00042191,2]
[377246192,1754306065016,-888.64,0.00042191,2]
[377246193,1754306065026,-1281.23,0.00042191,2]
[377246194,1754306065035,-1558.5,0.00042191,2]
[377246195,1754306065045,-1778.85,0.00042191,2]
[377246196,1754306065054,-838.38,0.00042191,2]
[377246197,1754306065064,-1793.86,0.00042191,2]
[377246198,1754306065073,-632.03,0.00042191,2]
[377246199,1754306065084,-719.42,0.00042191,2]
[377246200,1754306065093,-2346.34,0.00042191,2]
[377246201,1754306065103,-2208.08,0.00042191,2]
[377246202,1754306065113,-400.0,0.00042191,2]
[377246203,1754306065123,-2121.06,0.00042191,2]
[377246204,1754306065132,-959.16,0.00042191,2]
[377246205,1754306065142,-1009.99,0.00042191,2]
[377246206,1754306065151,-2028.4,0.00042191,2]
[377246207,1754306065161,-1169.71,0.00042191,2]
[377246208,1754306065170,-400.0,0.00042191,2]
[377246209,1754306065179,-6220.24,0.00042191,2]
[377246210,1754306065189,-693.34,0.00042191,2]
[377246211,1754306065198,-1366.07,0.00042191,2]
[377246212,1754306065208,-1689.54,0.00042191,2]
[377246213,1754306065217,-1110.66,0.00042191,2]
[377246214,1754306065227,-1421.12,0.00042191,2]
[377246215,1754306065236,-487.34,0.00042191,2]
[377246216,1754306065246,-401.93,0.00042191,2]
[377246217,1754306065255,-2122.58,0.00042191,2]
[377246218,1754306065264,-548.21,0.00042191,2]
[377246219,1754306065274,-1096.89,0.00042191,2]
[377246220,1754306065283,-558.13,0.00042191,2]
[377246221,1754306065293,-400.0,0.00042191,2]
[377246222,1754306065302,-1162.47,0.00042191,2]
[377246223,1754306065311,-2428.92,0.00042191,2]
[377246224,1754306065323,-4527.79,0.00042191,2]
[377246225,1754306065333,-683.16,0.00042191,2]
[377246226,1754306065345,-688.63,0.00042191,2]
[377246227,1754306065355,-787.49,0.00042191,2]
[377246228,1754306065364,-400.0,0.00042191,2]
[377246229,1754306065374,-642.79,0.00042191,2]
[377246230,1754306065383,-400.0,0.00042191,2]
[377246231,1754306065393,-5396.72,0.00042191,2]
[377246232,1754306065402,-1940.04,0.00042191,2]
[377246233,1754306065412,-464.5367445,0.00042191,2]
[377246234,1754306065422,-400.0,0.00042191,2]
[377246235,1754306065431,-4563.07,0.00042191,2]
[377246236,1754306065441,-1666.37,0.00042191,2]
[377246237,1754306065451,-193.33017639,0.00042191,2]
[377246238,1754306065460,-1973.82,0.00042191,2]
[377246239,1754306065470,-962.89,0.00042191,2]
[377246240,1754306065480,-1536.5,0.00042191,2]
[377246241,1754306065489,-778.62,0.00042191,2]
[377246242,1754306065499,-1125.71,0.00042191,2]
[377246243,1754306065509,-524.97,0.00042191,2]
[377246244,1754306065519,-8227.11,0.00042191,2]
[377246245,1754306065529,-400.0,0.00042191,2]
[377246246,1754306065540,-770.91,0.00042191,2]
[377246247,1754306065550,-11138.27,0.00042191,2]
[377246248,1754306065560,-2940.43,0.00042191,2]
[377246249,1754306065570,-458.47,0.00042191,2]
[377246250,1754306065580,-802.26,0.00042191,2]
[377246251,1754306065590,-1728.23,0.00042191,2]
[377246252,1754306065600,-2047.73,0.00042191,2]
[377246253,1754306065611,-2159.66,0.00042191,2]
[377246254,1754306065621,-1756.78,0.00042191,2]
[377246255,1754306065630,-445.29,0.00042191,2]
[377246256,1754306065640,-2736.99,0.00042191,2]
[377246257,1754306065650,-1618.06,0.00042191,2]
[377246258,1754306065659,-581.83,0.00042191,2]
[377246259,1754306065669,-893.35,0.00042191,2]
[377246260,1754306065679,-1865.31,0.00042191,2]
[377246261,1754306065689,-1394.73,0.00042191,2]
[377246262,1754306065699,-400.0,0.00042191,2]
[377246263,1754306065709,-1087.63,0.00042191,2]
[377246264,1754306065719,-3648.6,0.00042191,2]
[377246265,1754306065730,-997.42,0.00042191,2]
[377246266,1754306065740,-1873.61,0.00042191,2]
[377246267,1754306065749,-1200.71,0.00042191,2]
[377246268,1754306065759,-400.0,0.00042191,2]
[377246269,1754306065769,-520.48,0.00042191,2]
[377246270,1754306065780,-1629.46,0.00042191,2]
[377246271,1754306065790,-9079.6,0.00042191,2]
[377246272,1754306065800,-531.96,0.00042191,2]
[377246273,1754306065810,-510.65,0.00042191,2]
[377246274,1754306065820,-875.07,0.00042191,2]
[377246275,1754306065830,-3451.49,0.00042191,2]
[377246276,1754306065840,-688.87,0.00042191,2]
[377246277,1754306065849,-6021.56,0.00042191,2]
[377246278,1754306065859,-400.0,0.00042191,2]
[377246279,1754306065869,-1001.01,0.00042191,2]
[377246280,1754306065878,-659.18,0.00042191,2]
[377246281,1754306065888,-1875.95,0.00042191,2]
[377246282,1754306065898,-618.84,0.00042191,2]
[377246283,1754306065907,-491.69,0.00042191,2]
[377246284,1754306065917,-905.16,0.00042191,2]
[377246285,1754306065927,-476.99,0.00042191,2]
[377246286,1754306065937,-1286.32,0.00042191,2]
[377246287,1754306065947,-713.76,0.00042191,2]
[377246288,1754306065958,-580.3,0.00042191,2]
[377246289,1754306065971,-727.44,0.00042191,2]
[377246290,1754306065980,-1539.83,0.00042191,2]
[377246291,1754306065990,-406.58,0.00042191,2]
[377246292,1754306066000,-1377.16,0.00042191,2]
[377246293,1754306066011,-582.52,0.00042191,2]
[377246294,1754306066020,-2160.03,0.00042191,2]
[377246295,1754306066030,-400.0,0.00042191,2]
[377246296,1754306066040,-1891.71,0.00042191,2]
[377246297,1754306066050,-1732.93,0.00042191,2]
[377246298,1754306066059,-1032.57,0.00042191,2]
[377246299,1754306066069,-6316.72,0.00042191,2]
[377246300,1754306066079,-1238.95,0.00042191,2]
[377246301,1754306066089,-3107.23,0.00042191,2]
[377246302,1754306066098,-1515.13,0.00042191,2]
[377246303,1754306066108,-1066.08,0.00042191,2]
[377246304,1754306066117,-2052.93,0.00042191,2]
[377246305,1754306066126,-1689.09,0.00042191,2]
[377246306,1754306066136,-533.88,0.00042191,2]
[377246307,1754306066146,-1698.39,0.00042191,2]
[377246308,1754306066155,-1868.67,0.00042191,2]
[377246309,1754306066165,-942.3,0.00042191,2]
[377246310,1754306066173,-1670.39,0.00042191,2]
[377246311,1754306066183,-1178.78,0.00042191,2]
[377246312,1754306066193,-400.0,0.00042191,2]
[377246313,1754306066202,-1545.77,0.00042191,2]
[377246314,1754306066213,-1644.64,0.00042191,2]
[377246315,1754306066222,-1113.34,0.00042191,2]
[377246316,1754306066232,-1766.11,0.00042191,2]
[377246317,1754306066242,-1572.92,0.00042191,2]
[377246318,1754306066252,-8388.36,0.00042191,2]
[377246319,1754306066261,-1722.33,0.00042191,2]
[377246320,1754306066271,-819.3,0.00042191,2]
[377246321,1754306066280,-1306.14,0.00042191,2]
[377246322,1754306066290,-1596.57,0.00042191,2]
[377246323,1754306066299,-1501.24,0.00042191,2]
[377246324,1754306066309,-1264.88,0.00042191,2]
[377246325,1754306066319,-431.73,0.00042191,2]
[377246326,1754306066329,-1010.21,0.00042191,2]
[377246327,1754306066339,-1156.04,0.00042191,2]
[377246328,1754306066348,-873.38,0.00042191,2]
[377246329,1754306066359,-4195.1,0.00042191,2]
[377246330,1754306066368,-1925.04,0.00042191,2]
[377246331,1754306066378,-400.0,0.00042191,2]
[377246332,1754306066387,-714.27,0.00042191,2]
[377246333,1754306066397,-1469.78,0.00042191,2]
[377246334,1754306066407,-817.57,0.00042191,2]
[377246335,1754306066417,-1923.74,0.00042191,2]
[377246336,1754306066426,-694.89,0.00042191,2]
[377246337,1754306066436,-400.0,0.00042191,2]
[377246338,1754306066446,-670.37,0.00042191,2]
[377246339,1754306066457,-1448.9,0.00042191,2]
[377246340,1754306066467,-1746.78,0.00042191,2]
[377246341,1754306066477,-5776.09,0.00042191,2]
[377246342,1754306066486,-1747.36,0.00042191,2]
[377246343,1754306066496,-1337.16,0.00042191,2]
[377246344,1754306066507,-400.0,0.00042191,2]
[377246345,1754306066517,-1374.38,0.00042191,2]
[377246346,1754306066527,-1183.71,0.00042191,2]
[377246347,1754306066538,-400.0,0.00042191,2]
[377246348,1754306066548,-6346.76,0.00042191,2]
[377246349,1754306066558,-400.0,0.00042191,2]
[377246350,1754306066568,-400.0,0.00042191,2]
[377246351,1754306066578,-1793.17,0.00042191,2]
[377246352,1754306066588,-455.16,0.00042191,2]
[377246353,1754306066598,-1208.54,0.00042191,2]
[377246354,1754306066608,-1363.88,0.00042191,2]
[377246355,1754306066619,-1230.85,0.00042191,2]
[377246356,1754306066629,-941.56,0.00042191,2]
[377246357,1754306066639,-1603.12,0.00042191,2]
[377246358,1754306066649,-968.13,0.00042191,2]
[377246359,1754306066659,-2444.62,0.00042191,2]
[377246360,1754306066669,-521.68,0.00042191,2]
[377246361,1754306066679,-642.68,0.00042191,2]
[377246362,1754306066690,-1266.17,0.00042191,2]
[377246363,1754306066700,-532.52,0.00042191,2]
[377246364,1754306066710,-403.29,0.00042191,2]
[377246365,1754306066720,-1754.23,0.00042191,2]
[377246366,1754306066730,-2358.63,0.00042191,2]
[377246367,1754306066740,-2154.85,0.00042191,2]
[377246368,1754306066759,-403.11,0.00042191,2]
[377246369,1754306066769,-400.0,0.00042191,2]
[377246370,1754306066779,-1873.9,0.00042191,2]
[377246371,1754306066789,-1735.99,0.00042191,2]
[377246372,1754306066799,-1673.67,0.00042191,2]
[377246373,1754306066809,-914.89,0.00042191,2]
[377246374,1754306066820,-1754.05,0.00042191,2]
[377246375,1754306066830,-1464.44,0.00042191,2]
[377246376,1754306066841,-773.62,0.00042191,2]
[377246377,1754306066850,-1593.33,0.00042191,2]
[377246378,1754306066860,-1378.84,0.00042191,2]
[377246379,1754306066870,-652.46,0.00042191,2]
[377246380,1754306066880,-557.78,0.00042191,2]
[377246381,1754306066890,-2045.74,0.00042191,2]
[377246382,1754306066900,-759.33,0.00042191,2]
[377246383,1754306066910,-783.24,0.00042191,2]
[377246384,1754306066919,-4332.09,0.00042191,2]
[377246385,1754306066928,-505.58,0.00042191,2]
[377246386,1754306066938,-781.05,0.00042191,2]
[377246387,1754306066947,-1582.56,0.00042191,2]
[377246388,1754306066957,-437.18,0.00042191,2]
[377246389,1754306066970,-958.47,0.00042191,2]
[377246390,1754306066979,-2822.69,0.00042191,2]
[377246391,1754306066989,-4257.32,0.00042191,2]
[377246392,1754306066998,-1692.49,0.00042191,2]
[377246393,1754306067008,-400.0,0.00042191,2]
[377246394,1754306067017,-8447.34,0.00042191,2]
[377246395,1754306067027,-1474.41,0.00042191,2]
[377246396,1754306067036,-8555.46,0.00042191,2]
[377246397,1754306067045,-12684.74,0.00042191,2]
[377246398,1754306067055,-1233.77,0.00042191,2]
[377246399,1754306067064,-1370.77,0.00042191,2]
[377246400,1754306067073,-400.0,0.00042191,2]
[377246401,1754306067083,-1888.39,0.00042191,2]
[377246402,1754306067092,-920.62,0.00042191,2]
[377246403,1754306067101,-1431.25,0.00042191,2]
[377246404,1754306067111,-1147.83,0.00042191,2]
[377246405,1754306067120,-1817.19,0.00042191,2]
[377246406,1754306067130,-2271.19,0.00042191,2]
[377246407,1754306067140,-1907.39,0.00042191,2]
[377246408,1754306067150,-400.0,0.00042191,2]
[377246409,1754306067159,-2068.75,0.00042191,2]
[377246410,1754306067586,-2687.79,0.00042191,2]
[377246411,1754306067607,-2214.61,0.00042191,2]
[377246412,1754306067618,-400.0,0.00042191,2]
[377246413,1754306067628,-802.2,0.00042191,2]
[377246414,1754306067639,-670.02,0.00042191,2]
[377246415,1754306067649,-1614.22,0.00042191,2]
[377246416,1754306067659,-579.73,0.00042191,2]
[377246417,1754306067669,-1690.87,0.00042191,2]
[377246418,1754306067679,-78789.54,0.00042191,2]
[377246419,1754306067689,-1475.5,0.00042191,2]
[377246420,1754306067699,-1594.85,0.00042191,2]
[377246421,1754306067709,-400.0,0.00042191,2]
[377246422,1754306067719,-1475.71,0.00042191,2]
[377246423,1754306067729,-1258.18,0.00042191,2]
[377246424,1754306067739,-1778.93,0.00042191,2]
[377246425,1754306067749,-498.32,0.00042191,2]
[377246426,1754306067759,-2169.93,0.00042191,2]
[377246427,1754306067769,-11200.4,0.00042191,2]
[377246428,1754306067780,-898.73,0.00042191,2]
[377246429,1754306067790,-3118.04,0.00042191,2]
[377246430,1754306067800,-1556.28,0.00042191,2]
[377246431,1754306067810,-1043.71,0.00042191,2]
[377246432,1754306067821,-1857.39,0.00042191,2]